bitfinex/quotes_SOLUSD_20220311
["timestamp","ask_amount","ask_price","bid_price","bid_amount"]
[1646990483948,6.088,82.157,82.09,18.2626]
[1646990488353,24.2508,82.158,82.09,18.2626]
[1646990510930,25.89822435,82.158,82.09,18.2626]
[1646990511329,25.89822435,82.158,82.08,18.2652]
[1646990511529,18.2656,82.15,82.08,18.2652]
[1646990514734,1.64742435,82.156,82.09,18.2629]
[1646990515135,1.64742435,82.157,82.09,18.2629]
[1646990516837,1.64742435,82.156,82.09,18.2629]
[1646990520546,1.64742435,82.155,82.09,18.2629]
[1646990522346,1.64742435,82.154,82.09,18.2629]
[1646990523246,1.64742435,82.153,82.09,18.2629]
[1646990523446,1.64742435,82.154,82.09,18.2629]
[1646990523849,1.64742435,82.153,82.09,18.2629]
[1646990524047,1.64742435,82.154,82.09,18.2629]
[1646990525149,123.54742435,82.149,82.071,6.088]
[1646990525348,1.64742435,82.147,82.071,6.088]
[1646990525948,23.3901,82.146,82.071,6.088]
[1646990526248,23.3901,82.146,82.08,18.265]
[1646990527452,23.3901,82.146,82.081,3.04447957]
[1646990527750,23.3901,82.146,82.081,124.94447957]
[1646990527949,23.3901,82.146,82.083,121.9]
[1646990528153,23.3901,82.146,82.082,48.86806134]
[1646990528350,23.3901,82.146,82.09,18.2611]
[1646990528550,23.3901,82.146,82.09,14.54]
[1646990529550,23.3901,82.146,82.09,32.8012]
[1646990530551,23.3901,82.146,82.09,18.2612]
[1646990530754,23.3901,82.146,82.071,9.13247957]
[1646990530951,28.6901,82.146,82.071,6.088]
[1646990531151,121.9,82.145,82.071,6.088]
[1646990532250,23.3901,82.146,82.071,6.088]
[1646990533155,23.3901,82.146,82.08,18.2651]
[1646990533357,121.9,82.145,82.08,18.2651]
[1646990534756,121.9,82.139,82.071,6.088]
[1646990534957,121.9,82.137,82.071,6.088]
[1646990535557,121.9,82.135,82.071,6.088]
[1646990535758,55.5232266,82.134,82.071,6.088]
[1646990543594,121.9,82.133,82.071,6.088]
[1646990543895,55.5232266,82.134,82.071,6.088]
[1646990544094,121.9,82.133,82.071,6.088]
[1646990544795,55.5232266,82.134,82.071,6.088]
[1646990549203,121.9,82.133,82.071,6.088]
[1646990550403,55.5232266,82.134,82.071,6.088]
[1646990550603,121.9,82.133,82.071,6.088]
[1646990551004,121.9,82.133,82.07,18.2676]
[1646990551709,55.5232266,82.134,82.07,18.2676]
[1646990552306,121.9,82.133,82.07,18.2676]
[1646990555844,121.9,82.133,82.06,18.2699]
[1646990556047,121.9,82.129,82.061,6.09]
[1646990556244,121.9,82.129,82.061,13.59892866]
[1646990556946,121.9,82.129,82.06,18.2699]
[1646990557746,121.9,82.129,82.047,6.09]
[1646990557945,121.9,82.127,82.041,6.091]
[1646990558147,121.9,82.127,82.048,13.61189717]
[1646990558546,121.9,82.125,82.042,13.61189717]
[1646990558848,127.43,82.125,82.043,6.091]
[1646990559046,121.9,82.123,82.042,13.61189717]
[1646990559454,121.9,82.121,82.04,18.2728]
[1646990559646,121.9,82.119,82.04,18.2728]
[1646990559848,121.9,82.117,82.04,18.2728]
[1646990560054,121.9,82.115,82.04,18.2728]
[1646990562248,121.9,82.115,82.041,6.091]
[1646990562851,121.9,82.113,82.04,18.2728]
[1646990563155,121.9,82.111,82.04,18.2728]
[1646990564556,121.9,82.111,82.034,17.36569062]
[1646990565151,121.9,82.111,82.03,18.2767]
[1646990565352,22.6464,82.112,82.03,18.2767]
[1646990565353,121.9,82.109,82.03,18.2767]
[1646990565551,179.45127757,82.107,82.03,18.2767]
[1646990565751,121.9,82.105,82.03,18.2767]
[1646990566552,121.9,82.103,82.03,18.2767]
[1646990566750,127.23,82.103,82.03,18.2767]
[1646990567153,127.23,82.103,82.02,18.279]
[1646990567350,127.23,82.103,82.021,6.091]
[1646990567552,5.33,82.103,82.021,6.091]
[1646990567752,121.9,82.099,82.021,6.091]
[1646990569659,121.9,82.097,82.02,18.279]
[1646990569855,121.9,82.095,82.02,18.279]
[1646990570955,121.9,82.096,82.02,18.279]
[1646990571158,121.9,82.094,82.02,18.279]
[1646990572055,121.9,82.096,82.02,18.279]
[1646990572958,23.2879,82.097,82.021,9.13747957]
[1646990573357,23.2879,82.097,82.022,27.70195072]
[1646990573557,23.2879,82.097,82.023,6.093]
[1646990573760,23.2879,82.097,82.023,36.79624371]
[1646990574760,23.2879,82.097,82.04,18.2745]
[1646990575159,23.2879,82.097,82.023,36.79624371]
[1646990575762,23.2879,82.097,82.03,18.2766]
[1646990576361,121.9,82.096,82.023,3.04447957]
[1646990576760,23.2879,82.097,82.023,3.04447957]
[1646990576960,23.2879,82.097,82.03,18.2764]
[1646990578167,22.7879,82.097,82.03,18.2764]
[1646990578366,121.9,82.096,82.03,18.2764]
[1646990579766,22.7879,82.097,82.03,18.2764]
[1646990579966,121.9,82.096,82.03,18.2764]
[1646990580173,128.82,82.096,82.03,18.2764]
[1646990581590,121.9,82.096,82.03,18.2764]
[1646990584094,22.7879,82.097,82.03,18.2764]
[1646990584796,22.7879,82.097,82.031,3.04447957]
[1646990584996,22.7879,82.097,82.04,18.2742]
[1646990585297,22.7879,82.097,82.032,6.091]
[1646990585698,57.55127757,82.107,82.05,60.8881]
[1646990585997,57.55127757,82.107,82.05,14.54]
[1646990586195,57.55127757,82.107,82.07,18.2659]
[1646990594710,57.55127757,82.107,82.08,18.264]
[1646990596111,24.6824,82.127,82.07,127.55806572]
[1646990596312,102.67262652,82.17,82.07,127.55806572]
[1646990596313,6.09,82.163,82.09,18.2617]
[1646990596510,47.6041,82.168,82.081,3.04447957]
[1646990597110,51.58869134,82.167,82.081,3.04447957]
[1646990598116,51.58869134,82.167,82.1,18.2596]
[1646990601720,51.58869134,82.167,82.11,18.257]
[1646990603328,51.58869134,82.167,82.091,121.9]
[1646990603527,51.58869134,82.167,82.12,18.255]
[1646990603726,6.086,82.201,82.12,18.255]
[1646990603925,24.8374,82.2,82.121,124.94447957]
[1646990604125,24.8374,82.2,82.121,144.09984604]
[1646990604326,24.8374,82.2,82.123,121.9]
[1646990604825,54.33665065,82.199,82.13,18.2443]
[1646990605125,54.33665065,82.199,82.14,14.54]
[1646990605523,54.33665065,82.199,82.141,3.04447957]
[1646990606127,54.33665065,82.199,82.15,18.2468]
[1646990608248,6.083,82.224,82.15,18.2468]
[1646990608450,54.606,82.239,82.151,9.12747957]
[1646990608648,48.523,82.239,82.16,18.2434]
[1646990608848,48.523,82.239,82.161,6.082]
[1646990609249,49.31776372,82.238,82.161,9.12647957]
[1646990609451,49.31776372,82.238,82.162,3.04447957]
[1646990610749,121.9,82.237,82.161,6.082]
[1646990614053,55.39976372,82.238,82.161,6.082]
[1646990615357,49.31776372,82.238,82.161,6.082]
[1646990618756,121.9,82.237,82.161,6.082]
[1646990621063,121.9,82.229,82.161,6.082]
[1646990621258,121.9,82.227,82.161,6.082]
[1646990621460,121.9,82.225,82.161,6.082]
[1646990621864,121.9,82.223,82.161,6.082]
[1646990622761,121.9,82.224,82.161,6.082]
[1646990623161,50.70016695,82.209,82.161,6.082]
[1646990623360,74.77646695,82.209,82.161,6.082]
[1646990626265,74.77646695,82.209,82.16,18.248]
[1646990626666,74.77646695,82.209,82.141,3.04447957]
[1646990628171,74.77646695,82.209,82.15,18.2497]
[1646990630474,74.77646695,82.209,82.15,32.7897]
[1646990634072,74.77646695,82.209,82.15,18.2497]
[1646990639576,121.9,82.208,82.15,18.2497]
[1646990640375,74.77646695,82.209,82.15,18.2497]
[1646990652205,74.77646695,82.209,82.141,6.083]
[1646990652404,23.0291,82.208,82.141,6.083]
[1646990653210,23.0291,82.208,82.14,104.43794204]
[1646990654209,23.0291,82.208,82.15,18.2494]
[1646990655106,23.0291,82.208,82.14,122.68994204]
[1646990655307,23.0291,82.208,82.14,18.252]
[1646990658212,28.5391,82.208,82.14,18.252]
[1646990659017,28.5391,82.208,82.141,6.083]
[1646990660818,23.0291,82.208,82.15,18.2491]
[1646990664526,23.0291,82.208,82.15,32.7891]
[1646990664723,23.0291,82.208,82.151,9.12747957]
[1646990664924,23.0291,82.208,82.16,18.2445]
[1646990665325,23.0291,82.208,82.161,3.04447957]
[1646990666926,23.0291,82.208,82.16,14.54]
[1646990667129,23.0291,82.208,82.151,6.083]
[1646990667927,23.0291,82.208,82.16,18.2474]
[1646990668528,74.77646695,82.209,82.16,18.2474]
[1646990673532,74.77646695,82.209,82.161,3.04447957]
[1646990674836,74.77646695,82.209,82.16,18.2474]
[1646990684842,74.77646695,82.209,82.151,6.083]
[1646990685251,196.67646695,82.209,82.151,6.083]
[1646990690369,18.2547,82.2,82.151,6.083]
[1646990690575,144.8615,82.199,82.151,6.083]
[1646990691977,22.9615,82.199,82.151,6.083]
[1646990693683,121.9,82.198,82.151,6.083]
[1646990694985,22.9615,82.199,82.151,6.083]
[1646990704799,22.9615,82.199,82.151,6.65259118]
[1646990706003,22.9615,82.199,82.16,18.2472]
[1646990710728,22.9615,82.199,82.16,32.7872]
[1646990717136,25.55842435,82.241,82.16,32.7872]
[1646990717337,22.6166,82.24,82.161,30.098079]
[1646990717533,22.8808,82.26,82.19,18.2293]
[1646990717735,22.6166,82.259,82.19,5.64]
[1646990717933,22.6166,82.259,82.191,27.64146004]
[1646990718138,22.6166,82.259,82.191,30.68593961]
[1646990718341,22.6166,82.259,82.2,142.0781144]
[1646990718541,22.6166,82.259,82.21,14.54]
[1646990720135,22.6166,82.259,82.21,32.7714]
[1646990722335,0.61054796,82.292,82.21,32.7714]
[1646990722336,6.08,82.291,82.211,121.9]
[1646990722535,0.61054796,82.292,82.211,121.9]
[1646990722536,47.3925,82.29,82.211,149.97769347]
[1646990722736,47.3925,82.29,82.213,121.9]
[1646990723135,47.3925,82.29,82.214,3.04447957]
[1646990723335,98.37085438,82.29,82.214,3.04447957]
[1646990724639,98.37085438,82.29,82.214,124.94447957]
[1646990725137,98.37085438,82.29,82.215,3.04447957]
[1646990725439,47.3925,82.29,82.22,14.54]
[1646990726037,47.3925,82.29,82.221,3.04447957]
[1646990727643,0.00760222,82.285,82.221,3.04447957]
[1646990728044,0.00760222,82.285,82.22,14.54]
[1646990728243,18.2396,82.27,82.209,3.04447957]
[1646990728447,60.28331336,82.268,82.198,3.04447957]
[1646990728644,67.08331336,82.268,82.198,3.04447957]
[1646990729245,67.08331336,82.268,82.2,18.2377]
[1646990729546,188.98331336,82.268,82.2,18.2377]
[1646990729744,188.98331336,82.268,82.183,3.04447957]
[1646990731352,188.98331336,82.268,82.18,14.54]
[1646990731552,195.06331336,82.268,82.18,14.54]
[1646990731753,195.06331336,82.268,82.17,18.2391]
[1646990732151,195.06331336,82.268,82.17,45.88056004]
[1646990732356,195.06331336,82.268,82.17,60.42056004]
[1646990732751,195.06331336,82.268,82.17,88.49825351]
[1646990732953,121.9,82.266,82.17,14.54]
[1646990733155,6.081,82.265,82.158,27.64146004]
[1646990733358,121.9,82.239,82.158,27.64146004]
[1646990733554,54.30787724,82.237,82.159,28.07769347]
[1646990733754,54.30787724,82.237,82.16,14.54]
[1646990733958,54.30787724,82.237,82.16,42.18068004]
[1646990734153,54.30787724,82.237,82.161,30.68515961]
[1646990734554,54.30787724,82.237,82.162,30.68515961]
[1646990734754,54.30787724,82.237,82.162,58.76285308]
[1646990734954,54.30787724,82.237,82.163,55.71837351]
[1646990735181,47.6957,82.238,82.163,55.71837351]
[1646990735356,47.6957,82.238,82.164,180.66285308]
[1646990735755,47.6957,82.238,82.165,75.29114701]
[1646990735958,47.6957,82.238,82.18,14.54]
[1646990736257,62.0523576,82.268,82.181,121.9]
[1646990736464,24.8722,82.265,82.182,5.04104991]
[1646990736657,24.8722,82.265,82.183,121.9]
[1646990736858,24.8722,82.265,82.185,121.9]
[1646990737056,24.8722,82.265,82.187,182.82]
[1646990737259,24.8722,82.265,82.201,121.9]
[1646990737659,24.8722,82.265,82.201,138.42829393]
[1646990737860,24.8722,82.265,82.203,121.9]
[1646990738263,24.8722,82.265,82.204,180.66285308]
[1646990738664,24.8722,82.265,82.205,3.04447957]
[1646990739265,24.8722,82.265,82.2,14.54]
[1646990741266,24.8722,82.265,82.2,42.61769347]
[1646990742071,24.8722,82.265,82.211,121.9]
[1646990742470,24.8722,82.265,82.202,4.72967654]
[1646990742471,24.8722,82.265,82.22,14.54]
[1646990742693,24.8722,82.265,82.23,14.54]
[1646990744103,24.8722,82.265,82.23,32.7695]
[1646990745504,24.8722,82.265,82.23,14.54]
[1646990746708,24.8722,82.265,82.21,117.53215994]
[1646990746912,24.8722,82.265,82.21,132.07215994]
[1646990747310,24.8722,82.265,82.21,14.54]
[1646990748007,32.1422,82.265,82.21,14.54]
[1646990748209,32.1422,82.265,82.21,18.236]
[1646990750613,24.8722,82.265,82.21,18.236]
[1646990751014,31.6922,82.265,82.21,18.236]
[1646990751822,31.6922,82.265,82.186,3.04447957]
[1646990752022,121.9,82.264,82.18,75.3344]
[1646990752221,31.6922,82.265,82.18,75.3344]
[1646990752421,31.6922,82.265,82.181,3.04447957]
[1646990753823,31.6922,82.265,82.182,25.8330268]
[1646990754046,24.8722,82.265,82.182,25.8330268]
[1646990754252,24.8722,82.265,82.183,3.04447957]
[1646990758652,24.8722,82.265,82.184,16.52829393]
[1646990758951,24.8722,82.265,82.185,3.04447957]
[1646990759150,24.8722,82.265,82.19,14.54]
[1646990759350,24.8722,82.265,82.19,32.776]
[1646990759555,24.8722,82.265,82.22,141.93143678]
[1646990759757,24.8722,82.265,82.22,149.23143678]
[1646990759953,24.8722,82.265,82.221,3.04447957]
[1646990760153,24.8722,82.265,82.221,19.5727735]
[1646990760552,24.8722,82.265,82.222,3.04447957]
[1646990760952,24.8722,82.265,82.22,14.54]
[1646990764456,24.8722,82.265,82.22,14.04]
[1646990766260,24.8722,82.265,82.22,44.89735217]
[1646990766458,24.8722,82.265,82.22,47.94183174]
[1646990766658,24.8722,82.265,82.221,6.079]
[1646990767261,24.8722,82.265,82.22,14.04]
[1646990771964,24.8722,82.265,82.21,18.2354]
[1646990773764,24.8722,82.265,82.205,30.85735217]
[1646990773966,121.9,82.264,82.195,6.08]
[1646990774168,121.9,82.264,82.192,30.85735217]
[1646990774366,121.9,82.264,82.195,30.85735217]
[1646990774666,24.8722,82.265,82.195,30.85735217]
[1646990775066,24.8722,82.265,82.196,25.8330268]
[1646990775467,24.8722,82.265,82.197,30.85735217]
[1646990775865,24.8722,82.265,82.197,56.69037897]
[1646990776065,24.8722,82.265,82.197,59.73485854]
[1646990776266,24.8722,82.265,82.198,36.93735217]
[1646990776765,121.9,82.264,82.199,59.73485854]
[1646990776965,121.9,82.264,82.2,6.08]
[1646990777368,121.9,82.264,82.199,56.69037897]
[1646990778266,121.9,82.264,82.199,30.85735217]
[1646990779468,121.9,82.264,82.191,6.08]
[1646990780571,121.9,82.264,82.191,36.61061884]
[1646990780770,121.9,82.264,82.192,14.97802639]
[1646990780972,121.9,82.264,82.193,6.08]
[1646990782171,121.9,82.264,82.19,32.7819]
[1646990782370,121.9,82.264,82.194,30.53061884]
[1646990782775,121.9,82.264,82.195,25.8330268]
[1646990783177,24.8722,82.265,82.196,30.53061884]
[1646990783376,24.8722,82.265,82.196,39.65509841]
[1646990783577,24.8722,82.265,82.2,14.54]
[1646990783777,24.8722,82.265,82.201,6.08]
[1646990783986,24.8722,82.265,82.201,49.93117504]
[1646990784183,24.8722,82.265,82.201,54.62876708]
[1646990784378,24.8722,82.265,82.202,59.40812521]
[1646990784578,24.8722,82.265,82.203,6.08]
[1646990784780,24.8722,82.265,82.203,65.48812521]
[1646990784979,24.8722,82.265,82.204,33.57509841]
[1646990785178,24.8722,82.265,82.205,6.08]
[1646990785379,24.8722,82.265,82.205,39.65509841]
[1646990785582,24.8722,82.265,82.206,3.04447957]
[1646990785780,24.8722,82.265,82.207,6.08]
[1646990786884,24.8722,82.265,82.206,6.08]
[1646990788106,24.8722,82.265,82.205,30.53061884]
[1646990788302,24.8722,82.265,82.206,6.08]
[1646990789204,24.8722,82.265,82.21,32.776]
[1646990789404,24.8722,82.265,82.211,6.079]
[1646990792509,24.8722,82.265,82.211,36.60961884]
[1646990794117,24.8722,82.265,82.211,6.079]
[1646990794415,24.8722,82.265,82.197,6.079]
[1646990794615,31.7022,82.265,82.197,6.079]
[1646990795018,31.7022,82.265,82.198,14.98343933]
[1646990795218,31.7022,82.265,82.199,6.08]
[1646990795620,31.7022,82.265,82.2,29.49061884]
[1646990795820,31.7022,82.265,82.201,6.08]
[1646990796015,31.7022,82.265,82.201,31.82636014]
[1646990796215,24.8722,82.265,82.202,44.47405817]
[1646990796415,24.8722,82.265,82.203,6.08]
[1646990796616,24.8722,82.265,82.203,79.34489788]
[1646990796818,24.8722,82.265,82.204,32.53509841]
[1646990797018,24.8722,82.265,82.205,6.08]
[1646990798522,24.8722,82.265,82.205,35.57061884]
[1646990800322,24.8722,82.265,82.206,3.04447957]
[1646990800722,24.8722,82.265,82.207,29.49061884]
[1646990801325,24.8722,82.265,82.207,32.53509841]
[1646990802824,24.8722,82.265,82.207,29.49061884]
[1646990803224,24.8722,82.265,82.208,14.99625494]
[1646990804024,24.8722,82.265,82.205,6.08]
[1646990804224,32.6022,82.265,82.205,6.08]
[1646990808951,32.6022,82.265,82.205,35.57061884]
[1646990809154,24.8722,82.265,82.205,35.57061884]
[1646990809456,24.8722,82.265,82.206,28.79083971]
[1646990809858,24.8722,82.265,82.207,29.49061884]
[1646990815459,24.8722,82.265,82.208,25.74636014]
[1646990815657,24.8722,82.265,82.208,28.79083971]
[1646990815958,24.8722,82.265,82.21,14.54]
[1646990816158,24.8722,82.265,82.21,32.7725]
[1646990816360,24.8722,82.265,82.211,47.52990265]
[1646990816560,24.8722,82.265,82.211,70.23178322]
[1646990816759,24.8722,82.265,82.212,44.48542308]
[1646990817164,24.8722,82.265,82.213,29.49061884]
[1646990818164,24.8722,82.265,82.213,32.53509841]
[1646990818363,24.8722,82.265,82.214,14.99437659]
[1646990818564,24.8722,82.265,82.214,44.48499543]
[1646990818766,24.8722,82.265,82.215,29.49061884]
[1646990820367,24.8722,82.265,82.216,3.04447957]
[1646990820768,24.8722,82.265,82.217,29.49061884]
[1646990821171,24.8722,82.265,82.218,18.04203296]
[1646990821370,24.8722,82.265,82.218,43.7883931]
[1646990821571,24.8722,82.265,82.22,14.54]
[1646990821977,24.8722,82.265,82.221,47.5326518]
[1646990822372,24.8722,82.265,82.222,47.5326518]
[1646990822774,24.8722,82.265,82.223,14.99755339]
[1646990824773,24.8722,82.265,82.224,3.04447957]
[1646990826977,0.00760222,82.285,82.225,14.99684559]
[1646990827179,23.6432,82.282,82.225,14.99684559]
[1646990827378,23.6432,82.282,82.226,3.04447957]
[1646990828580,23.6432,82.282,82.23,14.54]
[1646990828780,23.6432,82.282,82.23,32.7668]
[1646990828982,0.00760222,82.285,82.231,169.42253988]
[1646990829184,0.00760222,82.285,82.231,184.22249381]
[1646990829387,0.00760222,82.285,82.233,121.9]
[1646990829785,0.00760222,82.285,82.237,121.9]
[1646990829983,0.00760222,82.285,82.25,14.54]
[1646990830388,0.00760222,82.285,82.251,74.39141248]
[1646990830684,0.00760222,82.285,82.251,58.28145855]
[1646990830884,0.00760222,82.285,82.252,74.39141248]
[1646990831292,0.00760222,82.285,82.253,196.29141248]
[1646990831690,0.00760222,82.285,82.254,74.39141248]
[1646990831991,0.00760222,82.285,82.255,29.49061884]
[1646990832184,0.00760222,82.285,82.255,89.33300874]
[1646990832386,0.00760222,82.285,82.256,44.90079364]
[1646990832587,1.8,82.31,82.271,121.9]
[1646990833011,1.8,82.31,82.273,121.9]
[1646990833408,1.8,82.31,82.274,74.39141248]
[1646990833811,1.8,82.31,82.275,74.39141248]
[1646990834008,1.8,82.31,82.29,14.54]
[1646990834209,1.8,82.31,82.29,32.7551]
[1646990834409,1.8,82.31,82.291,29.49061884]
[1646990834612,1.8,82.31,82.291,74.39141248]
[1646990834813,1.8,82.31,82.292,28.79083971]
[1646990835009,1.8,82.31,82.292,74.39141248]
[1646990835212,1.8,82.31,82.293,74.39141248]
[1646990835609,1.8,82.31,82.294,58.28145855]
[1646990836011,1.8,82.31,82.295,32.53509841]
[1646990836412,1.8,82.31,82.3,14.54]
[1646990836812,1.8,82.31,82.3,17.58447957]
[1646990837412,1.8,82.31,82.3,47.07509841]
[1646990838314,48.0202,82.366,82.3,47.07509841]
[1646990838519,48.0202,82.366,82.3,72.82145855]
[1646990839515,48.0202,82.366,82.3,90.81207915]
[1646990839719,48.0202,82.366,82.301,121.9]
[1646990840116,48.0202,82.366,82.303,121.9]
[1646990840316,48.0202,82.366,82.302,79.08007915]
[1646990840516,48.0202,82.366,82.304,79.08007915]
[1646990840916,48.0202,82.366,82.305,79.08007915]
[1646990841116,48.0202,82.366,82.32,14.54]
[1646990843421,48.0202,82.366,82.32,46.83861884]
[1646990846124,48.0202,82.366,82.32,64.72341884]
[1646990847528,48.0202,82.366,82.32,46.83861884]
[1646990850732,48.0202,82.366,82.32,14.54]
[1646990850933,48.0202,82.366,82.31,18.2081]
[1646990851137,121.9,82.365,82.306,3.04447957]
[1646990851336,121.9,82.365,82.282,25.74636014]
[1646990851567,121.9,82.365,82.281,3.04447957]
[1646990851965,121.9,82.365,82.271,3.04447957]
[1646990852167,6.074,82.364,82.271,3.04447957]
[1646990853165,121.9,82.359,82.271,3.04447957]
[1646990853466,121.9,82.357,82.271,3.04447957]
[1646990853865,121.9,82.357,82.271,32.10150637]
[1646990854068,121.9,82.355,82.271,32.10150637]
[1646990854268,121.9,82.355,82.272,32.99660708]
[1646990854669,121.9,82.355,82.273,62.05363388]
[1646990855072,121.9,82.355,82.274,62.05363388]
[1646990855470,121.9,82.355,82.275,62.05363388]
[1646990856070,121.9,82.355,82.275,59.00915431]
[1646990856670,121.9,82.355,82.275,29.0570268]
[1646990857272,6.074,82.354,82.275,29.0570268]
[1646990857676,6.074,82.354,82.27,75.2668]
[1646990859074,6.074,82.354,82.27,104.3238268]
[1646990859275,6.074,82.354,82.271,29.95212751]
[1646990859678,6.074,82.354,82.272,29.0570268]
[1646990859976,6.074,82.354,82.273,29.95212751]
[1646990860376,6.074,82.354,82.274,29.0570268]
[1646990860776,6.074,82.354,82.275,29.95212751]
[1646990861380,6.074,82.354,82.275,59.00915431]
[1646990863078,6.074,82.354,82.275,29.95212751]
[1646990864382,6.074,82.354,82.276,29.0570268]
[1646990864782,121.9,82.355,82.277,29.95212751]
[1646990864984,121.9,82.355,82.277,58.96582098]
[1646990865786,6.074,82.354,82.277,58.96582098]
[1646990866184,23.9485,82.356,82.281,121.9]
[1646990866386,23.9485,82.356,82.292,5.67843647]
[1646990866688,23.9485,82.356,82.3,14.54]
[1646990867084,23.9485,82.356,82.301,62.09696721]
[1646990867286,23.9485,82.356,82.301,61.59696721]
[1646990867484,23.9485,82.356,82.302,3.04447957]
[1646990868087,23.9485,82.356,82.3,14.54]
[1646990869791,121.9,82.355,82.3,14.54]
[1646990869989,121.9,82.355,82.283,3.04447957]
[1646990870213,121.9,82.355,82.28,75.2337]
[1646990870396,23.9485,82.356,82.277,29.99546084]
[1646990870589,121.9,82.355,82.27,14.54]
[1646990870789,121.9,82.355,82.278,3.04447957]
[1646990871390,23.9485,82.356,82.278,3.04447957]
[1646990871590,121.9,82.355,82.278,3.04447957]
[1646990872689,127.22,82.355,82.278,3.04447957]
[1646990873891,6.074,82.354,82.278,3.04447957]
[1646990875692,6.074,82.354,82.27,18.2194]
[1646990875893,6.074,82.354,82.267,3.04447957]
[1646990876697,6.074,82.354,82.268,27.65546084]
[1646990878202,6.074,82.354,82.267,3.04447957]
[1646990879800,6.074,82.354,82.268,27.65546084]
[1646990882102,6.074,82.354,82.27,14.54]
[1646990884704,6.074,82.354,82.271,60.92]
[1646990885102,127.974,82.355,82.271,118.38030055]
[1646990885324,127.974,82.355,82.273,60.92]
[1646990885724,23.9485,82.356,82.275,60.92]
[1646990886029,23.9485,82.356,82.281,60.92]
[1646990886227,121.9,82.355,82.281,60.92]
[1646990886427,121.9,82.355,82.282,3.04447957]
[1646990887830,121.9,82.355,82.282,3.61291715]
[1646990889132,127.973,82.355,82.282,3.61291715]
[1646990889838,6.073,82.355,82.282,3.61291715]
[1646990890234,23.9485,82.356,82.282,3.61291715]
[1646990890736,23.9485,82.356,82.283,60.92]
[1646990890935,23.9485,82.356,82.283,63.96447957]
[1646990891139,23.9485,82.356,82.285,60.92]
[1646990891535,23.9485,82.356,82.287,60.92]
[1646990891736,23.9485,82.356,82.301,60.92]
[1646990892137,23.9485,82.356,82.302,3.04447957]
[1646990892335,23.9485,82.356,82.303,60.92]
[1646990892735,23.9485,82.356,82.304,3.04447957]
[1646990897945,6.073,82.397,82.306,60.92]
[1646990898143,24.5075,82.396,82.32,14.54]
[1646990898344,24.5075,82.396,82.321,60.92]
[1646990898745,24.5075,82.396,82.321,63.96447957]
[1646990898948,52.61494379,82.386,82.322,3.04447957]
[1646990899545,24.8004,82.385,82.322,3.04447957]
[1646990899946,62.99738627,82.373,82.322,3.04447957]
[1646990900245,24.8004,82.372,82.322,3.04447957]
[1646990901150,24.8004,82.372,82.323,60.92]
[1646990906156,24.8004,82.372,82.324,3.04447957]
[1646990906557,24.8004,82.372,82.325,26.76036014]
[1646990906756,24.8004,82.372,82.33,14.54]
[1646990907157,24.8004,82.372,82.34,18.2084]
[1646990911682,24.8004,82.372,82.33,18.2106]
[1646990911881,24.8004,82.372,82.323,60.92]
[1646990915484,24.8004,82.372,82.324,3.04447957]
[1646990918195,24.8004,82.372,82.321,60.92]
[1646990918798,30.1004,82.372,82.321,60.92]
[1646990920600,24.8004,82.372,82.321,60.92]
[1646990921799,24.8004,82.372,82.313,60.92]
[1646990922801,24.8004,82.372,82.314,6.072]
[1646990925003,24.8004,82.372,82.315,3.04447957]
[1646990925206,24.8004,82.372,82.316,6.072]
[1646990927111,24.8004,82.372,82.314,6.072]